Workbook

Sheet ПСК
A1: Ставка | B1: 25%
A3: Номер платежа | B3: Дата | C3: Дата в годах | D3: Денежный поток | E3: Погашение процентов | F3: Погашение основного долга | G3: Остаток основного долга | H3: Множители разделения на части | I3: 12 частей: | U3: Сумма
A4: 0 | B4: 2022-04-01 | C4: =YEAR(B4)-2000+(B4-DATE(YEAR(B4),1,0))/(DATE(YEAR(B4)+1,1,1)-DATE(YEAR(B4),1,1)) -> 22.24931507 | D4: =-G4 -> -150000 | G4: 150000 | I4: =D5/H5 -> 3020.132483 | J4: =D6/H6 -> 3055.917963 | K4: =D7/H7 -> 2897.795903 | L4: =D8/H8 -> 2932.13182 | M4: =D9/H9 -> 2871.16865 | N4: =D10/H10 -> 2722.606056 | O4: =D11/H11 -> 2754.866152 | P4: =D12/H12 -> 2612.321386 | Q4: =D13/H13 -> 2643.274722 | R4: =D14/H14 -> 2588.3173 | S4: =D15/H15 -> 2293.842691 | T4: =D16/H16 -> 119607.6074 | U4: =SUM(I4:T4) -> 149999.9825
A5: 1 | B5: =EDATE(B4,1) -> 2022-05-01 | C5: =YEAR(B5)-2000+(B5-DATE(YEAR(B5),1,0))/(DATE(YEAR(B5)+1,1,1)-DATE(YEAR(B5),1,1)) -> 22.33150685 | D5: =E5 -> 3082.19 | E5: =ROUND(G4*$B$1*($C5-$C4),2) -> 3082.19 | F5: =0 -> 0 | G5: =G4-F5 -> 150000 | H5: =(1+$B$1*(C5-C4)) -> 1.020547945 | I5: =I4*(1+$B$1*($C5-$C4)) -> 3082.19 | J5: =J4*(1+$B$1*($C5-$C4)) -> 3118.710798 | K5: =K4*(1+$B$1*($C5-$C4)) -> 2957.339655 | L5: =L4*(1+$B$1*($C5-$C4)) -> 2992.381104 | M5: =M4*(1+$B$1*($C5-$C4)) -> 2930.165266 | N5: =N4*(1+$B$1*($C5-$C4)) -> 2778.550016 | O5: =O4*(1+$B$1*($C5-$C4)) -> 2811.472991 | P5: =P4*(1+$B$1*($C5-$C4)) -> 2665.999223 | Q5: =Q4*(1+$B$1*($C5-$C4)) -> 2697.588586 | R5: 2641.501902 | S5: 2340.976444 | T5: 122065.2979
A6: 2 | B6: =EDATE(B5,1) -> 2022-06-01 | C6: 22.41643836 | D6: =E6 -> 3184.93 | E6: =ROUND(G5*$B$1*($C6-$C5),2) -> 3184.93 | F6: =0 -> 0 | G6: =G5-F6 -> 150000 | H6: =H5*(1+$B$1*(C6-C5)) -> 1.042217114 | J6: =J5*(1+$B$1*($C6-$C5)) -> 3184.93 | K6: =K5*(1+$B$1*($C6-$C5)) -> 3020.132483 | L6: 3055.917963 | M6: =M5*(1+$B$1*($C6-$C5)) -> 2992.381104 | N6: 2837.546626 | O6: 2871.16865 | P6: 2722.606056 | Q6: =Q5*(1+$B$1*($C6-$C5)) -> 2754.866152 | R6: =R5*(1+$B$1*($C6-$C5)) -> 2697.588586 | S6: =S5*(1+$B$1*($C6-$C5)) -> 2390.682109 | T6: =T5*(1+$B$1*($C6-$C5)) -> 124657.0954
A7: 3 | B7: 2022-07-01 | C7: 22.49863014 | D7: 3082.19 | E7: 3082.19 | F7: =0 -> 0 | G7: 150000 | H7: =H6*(1+$B$1*(C7-C6)) -> 1.063632534 | K7: 3082.19 | L7: 3118.710798 | M7: 3053.868387 | N7: 2895.852378 | O7: 2930.165266 | P7: 2778.550016 | Q7: 2811.472991 | R7: 2753.018489 | S7: 2439.805714 | T7: 127218.5425
A8: 4 | B8: 2022-08-01 | C8: 22.58356164 | D8: 3184.93 | E8: 3184.93 | F8: =0 -> 0 | G8: 150000 | H8: 1.086216513 | L8: 3184.93 | M8: 3118.710798 | N8: 2957.339655 | O8: 2992.381104 | P8: 2837.546626 | Q8: 2871.16865 | R8: 2811.472991 | S8: 2491.609808 | T8: 129919.7581
A9: 5 | B9: 2022-09-01 | C9: 22.66849315 | D9: 3184.93 | E9: 3184.93 | F9: =0 -> 0 | G9: 150000 | H9: 1.109280014 | M9: 3184.93 | N9: 3020.132483 | O9: 3055.917963 | P9: 2897.795903 | Q9: 2932.13182 | R9: 2871.16865 | S9: 2544.513851 | T9: 132678.3284
A10: 6 | B10: 2022-10-01 | C10: 22.75068493 | D10: 3082.19 | E10: 3082.19 | F10: =0 -> 0 | G10: 150000 | H10: 1.132073439 | N10: 3082.19 | O10: 3118.710798 | P10: 2957.339655 | Q10: 2992.381104 | R10: 2930.165266 | S10: 2596.798383 | T10: 135404.5954
A11: 7 | B11: 2022-11-01 | C11: 22.83561644 | D11: 3184.93 | E11: 3184.93 | F11: =0 -> 0 | G11: 150000 | H11: 1.156110615 | O11: 3184.93 | P11: 3020.132483 | Q11: 3055.917963 | R11: 2992.381104 | S11: 2651.935882 | T11: 138279.6245
A12: 8 | B12: 2022-12-01 | C12: 22.91780822 | D12: 3082.19 | E12: 3082.19 | F12: =0 -> 0 | G12: 150000 | H12: 1.179866312 | P12: 3082.19 | Q12: 3118.710798 | R12: 3053.868387 | S12: 2706.427716 | T12: 141120.9866
A13: 9 | B13: 2023-01-01 | C13: 23.00273973 | D13: 3184.93 | E13: 3184.93 | F13: =0 -> 0 | G13: 150000 | H13: 1.204918268 | Q13: 3184.93 | R13: 3118.710798 | S13: 2763.892962 | T13: 144117.3911
A14: 10 | B14: 2023-02-01 | C14: 23.08767123 | D14: 3184.93 | E14: 3184.93 | F14: =0 -> 0 | G14: 150000 | H14: 1.230502149 | R14: =R13*(1+$B$1*($C14-$C13)) -> 3184.93 | S14: =S13*(1+$B$1*($C14-$C13)) -> 2822.57836 | T14: =T13*(1+$B$1*($C14-$C13)) -> 147177.4179
A15: 11 | B15: 2023-03-01 | C15: 23.16438356 | D15: 2876.71 | E15: 2876.71 | F15: =0 -> 0 | G15: 150000 | H15: 1.25410082 | S15: =S14*(1+$B$1*($C15-$C14)) -> 2876.71 | T15: =T14*(1+$B$1*($C15-$C14)) -> 149999.9985
A16: 12 | B16: 2023-04-01 | C16: 23.24931507 | D16: =SUM(E16:F16) -> 153184.93 | E16: 3184.93 | F16: =G15 -> 150000 | G16: 0 | H16: 1.280728988 | T16: 153184.93
B17: ПСК по ст. 6 353-ФЗ: | D17: =IRR(D4:D16)*12 -> 25.007%
B18: Уточненная ПСК: | D18: =пск(D4:D16,B4:B16) -> 25.000%
